Cogmind - Beta 13 @@@ ROGUE MODE // 2024.04.27 @ 22:55:14 Player: silmarilion6 Result: Destroyed by as-25013 with Assembled Maul Performance ------------- Evolutions (0) 0 Regions Visited (2) 400 Robots Destroyed (9) 45 Value Destroyed (248) 248 Prototype IDs (2) 40 Alien Tech Used (0) 0 Bonus (7) 7 TOTAL SCORE: 740 Bonus ------- Follower Combat Kills 7 Cogmind --------- Core Integrity 0/250 Matter 244/300 Energy 100/100 System Corruption 0% Temperature Cool (0) Movement Flying (595) Ox7 Location -10/Mines Parts ------- > --- POWER (1) -------- (None) > --- PROPULSION (2) --- Cesium-ion Thruster > --- UTILITY (2) ------ High-capacity Storage Unit > --- WEAPON (2) ------- (None) > --- INVENTORY (20) --- Ion Engine Ion Engine Heat Sink Large Storage Unit Large Storage Unit High-capacity Storage Unit Huge Storage Unit Compact Battery (200) High-capacity Matter Pod (91) Compact Matter Pod (0) Seismic Detector Target Analyzer Reaction Control System Improved Light Armor Plating Insulated Plating EM Pulse Gun Heavy Battle Rifle Mining Laser Mining Laser Peak State ------------ > --- POWER ------------ Ion Engine > --- PROPULSION ------- Light Treads Light Treads > --- UTILITY ---------- High-capacity Storage Unit Propulsion Shielding > --- WEAPON ----------- Shock Rifle Heavy Battle Rifle > --- INVENTORY -------- Ion Engine Ion Engine Cesium-ion Thruster Heat Sink Large Storage Unit Large Storage Unit High-capacity Storage Unit Huge Storage Unit Compact Battery High-capacity Matter Pod Compact Matter Pod Seismic Detector Target Analyzer Reaction Control System Improved Light Armor Plating Insulated Plating EM Pulse Gun Mining Laser Mining Laser [Rating: 15] Favorites ----------- Power Ion Engine Engine Ion Engine Propulsion Light Treads Treads Light Treads Leg Aluminum Leg Wheel Compact Wheel Flight Unit Cesium-ion Thruster Utility High-capacity Storage Unit Storage High-capacity Storage Unit Protection Propulsion Shielding Weapon Assault Rifle Energy Gun EM Pulse Gun Ballistic Gun Assault Rifle Build | -11 -10 -10 ------- Run | Yrd Mat Min Slots Evolved . | . . . Power . | . . . Propulsion . | . . . Utility . | . . . Weapon . | . . . Parts Attached 20 | 7 7 6 Power 1 | 1 . . Engine 1 | 1 . . Core . | . . . Reactor . | . . . Propulsion 8 | 5 . 3 Treads 3 | 2 . 1 Leg 2 | 2 . . Wheel 1 | 1 . . Hover . | . . . Flight 2 | . . 2 Utility 6 | 1 4 1 Device . | . . . Storage 5 | 1 4 . Processor . | . . . Hackware . | . . . Protection 1 | . . 1 Artifact . | . . . Weapon 5 | . 3 2 Energy Gun 3 | . 2 1 Energy Cannon . | . . . Ballistic Gun 2 | . 1 1 Ballistic Cannon . | . . . Launcher . | . . . Special Weapon . | . . . Impact Weapon . | . . . Slashing Weapon . | . . . Piercing Weapon . | . . . Special Melee Weapon . | . . . Unidentified Prototypes . | . . . Parts Lost 5 | . . 5 Power 1 | . . 1 Propulsion 2 | . . 2 Utility 1 | . . 1 Weapon 1 | . . 1 Highest Loss Streak 5 | . . 5 To Critical Strikes . | . . . Average Slot Usage (%) 96 | . 94 97 Engine 13 | . 14 13 Treads 27 | . 28 27 Storage 25 | . 22 27 Energy Gun 13 | . 14 13 Ballistic Gun 13 | . 14 13 Naked Turns . | . . . Heaviest Build 69 | 10 69 69 Greatest Support 40 | 40 40 40 Greatest Overweight (x) 7 | . 1 7 Average Overweight (x) . | . . 1 Largest Inventory Capacity 20 | 8 20 20 Average Capacity 18 | 7 17 20 Most Carried 20 | 6 16 20 Average Carried 15 | 4 8 19 Final Capacity 20 | 8 20 20 Final Carried 19 | 6 16 19 Class Distribution -------------------- 100% | Mutant Dominant Class ---------------- Mutant | -10/Materials Mutant | -10/Mines Resources | -11 -10 -10 ----------- Run | Yrd Mat Min Matter Collected 500 | 228 163 109 Remotely . | . . . Salvage Created 295 | . 171 124 Parts 18 | . 10 8 Haulers Intercepted . | . . . Recyclers Shooed 1 | . 1 . Parts Field Recycled . | . . . Retrieved Matter . | . . . Parts Self-Destructed . | . . . Prevented . | . . . Kills | -11 -10 -10 ------- Run | Yrd Mat Min Combat Hostiles Destroyed 9 | . 3 6 Guns 9 | . 3 6 Classes Destroyed 6 | . 2 4 Worker 1 | . 1 . Recycler 1 | . . 1 Swarmer 2 | . . 2 Grunt 3 | . 3 . Demolisher 2 | . . 2 Assembled 2 | . . 2 Best Kill Streak 4 | . 3 4 Combat Bots Only 4 | . 2 4 Max Kills in Single Turn 1 | . 1 1 Gunslinging . | . . . Exploded . | . . . Melee . | . . . Uniques/NPCs Destroyed . | . . . Combat | -11 -10 -10 -------- Run | Yrd Mat Min Hostile Shots Fired 59 | . 27 32 Missed 19 | . 12 7 Damage Taken 901 | . 194 707 Core 275 | . 30 245 Absorbed by Shields . | . . . Redirected to Shielding 31 | . . 31 Core Remaining (%) 100 | 100 . . Volleys Fired 31 | . 17 14 Largest 2 | . 2 2 Hottest 83 | . 60 83 Shots Fired 58 | . 34 24 Gun 58 | . 34 24 Cannon . | . . . Launcher . | . . . Special . | . . . Kinetic 31 | . 17 14 Thermal 5 | . 5 . Explosive . | . . . Electromagnetic 22 | . 12 10 Robot Hit Streak 7 | . 7 4 Robot Miss Streak 7 | . 7 2 Penetration Max . | . . . Secondary Targets 1 | . . 1 Max Gunslinging Chain 1 | . . 1 Shots Hit Robots 29 | . 17 12 Core Hits 20 | . 9 11 Critical Kills . | . . . Critical Parts Destroyed . | . . . Critical Strikes 1 | . 1 . Corrupt 1 | . 1 . Melee Attacks . | . . . Impact . | . . . Slashing . | . . . Piercing . | . . . Sneak Attacks . | . . . Combat Hostiles . | . . . Follow-up Attacks . | . . . Damage Inflicted 515 | . 283 232 Guns 508 | . 283 225 Cannons . | . . . Explosions . | . . . Melee . | . . . Ramming 7 | . . 7 Kinetic 304 | . 143 161 Thermal 23 | . 23 . Explosive . | . . . Electromagnetic 181 | . 117 64 Impact . | . . . Slashing . | . . . Piercing . | . . . Highest Corruption . | . . . Average Corruption . | . . . Corruption Purged . | . . . Corruption Blocked . | . . . Overload Shots . | . . . Overflow Damage . | . . . Projectiles . | . . . Explosions . | . . . Melee . | . . . Knockbacks . | . . . Impact . | . . . Kinetic . | . . . Secondary . | . . . Self-Inflicted Damage . | . . . Shots . | . . . Rammed 1 | . . 1 Targets Rammed 1 | . . 1 Kicked . | . . . Crushed . | . . . Highest Temperature 54 | . 54 42 Average Temperature 23 | . 25 18 Received Heat Transfer 179 | . 99 80 Siege Activations . | . . . Robots Corrupted . | . . . Combat Hostiles . | . . . Parts Fried 2 | . 2 . Impact Corruptions . | . . . Robots Melted . | . . . Combat Hostiles . | . . . Parts Melted . | . . . Heat Transferred 50 | . 50 . Parts Sabotaged . | . . . Parts Stolen . | . . . Parts Stripped . | . . . Power Chain Reactions . | . . . Alert | -11 -10 -10 ------- Run | Yrd Mat Min Peak Influence 116 | . 75 116 Initial 22 | . . 22 Average 30 | . 37 29 Maximum Alert Level . | . . . Low Security (%) 100 | 100 100 100 Level 1 . | . . . Level 2 . | . . . Level 3 . | . . . Level 4 . | . . . Level 5 . | . . . High Security . | . . . Max Security . | . . . Squads Dispatched 3 | . 2 1 Investigation 2 | . 1 1 Extermination . | . . . Reinforcement 1 | . 1 . Assault . | . . . Garrison . | . . . Intercept . | . . . Searches Triggered . | . . . Construction Impeded . | . . . Haulers Reinforced . | . . . Active Scanning Responses . | . . . Cargo Convoy Interrupts . | . . . Stealth | -11 -10 -10 --------- Run | Yrd Mat Min Distress Signals . | . . . Communications Jammed . | . . . Distress Signals . | . . . Times Spotted 30 | . 9 21 Peak Tracking Total 7 | . 3 7 Tactical Retreats 1 | . . 1 Traps | -11 -10 -10 ------- Run | Yrd Mat Min Traps Triggered . | . . . Indirectly . | . . . Trap Hack Attempts . | . . . Triggered . | . . . Disarmed . | . . . Reprogrammed . | . . . Reused . | . . . Traps Extracted . | . . . Installed . | . . . Triggered . | . . . Machines | -11 -10 -10 ---------- Run | Yrd Mat Min Machines Disabled . | . . . Max in Single Turn . | . . . Machines Repaired . | . . . Machines Dismantled . | . . . Machines Sabotaged . | . . . Overloaded Fab Kills . | . . . Hacking | -11 -10 -10 --------- Run | Yrd Mat Min Machines Accessed 4 | . 3 1 Terminals 3 | . 3 . Fabricators . | . . . Repair Stations . | . . . Recycling Units . | . . . Scanalyzers . | . . . Garrison Access . | . . . Total Hacks 12 | . 11 1 Successful 9 | . 8 1 Failed 3 | . 3 . Catastrophic . | . . . Database Lockouts . | . . . Manual . | . . . Terminals 11 | . 11 . Fabricators . | . . . Repair Stations . | . . . Recycling Units . | . . . Scanalyzers . | . . . Garrison Access . | . . . Terminal Hacks 9 | . 8 1 Record 2 | . 2 . Prototype ID Bank 1 | . 1 . Open Door 1 | . . 1 Alert Level 2 | . 2 . Locate Traps 1 | . 1 . Recall Reinforcements 1 | . 1 . Zone Layout 1 | . 1 . Fabricator Hacks . | . . . Repair Station Hacks . | . . . Recycling Unit Hacks . | . . . Scanalyzer . | . . . Garrison Access Hacks . | . . . Unauthorized Hacks . | . . . Terminals . | . . . Fabricators . | . . . Repair Stations . | . . . Recycling Units . | . . . Scanalyzers . | . . . Garrison Access . | . . . Data Cores Recovered . | . . . Used . | . . . Hacking Detections 3 | . 3 . Full Trace Events 2 | . 2 . Feedback Events . | . . . Feedback Blocked . | . . . Robot Schematics Acquired . | . . . Robots Built . | . . . Authchips . | . . . Time . | . . . Total Robot Build Rating . | . . . Part Schematics Acquired . | . . . Parts Built . | . . . Authchips . | . . . Time . | . . . Total Part Build Rating . | . . . Parts Repaired . | . . . Time . | . . . Parts Recycled . | . . . Recycled Matter . | . . . Retrieved Matter . | . . . Retrieved Components . | . . . Parts Scanalyzed . | . . . Part Schematics Acquired . | . . . Parts Damaged . | . . . Bothacking | -11 -10 -10 ------------ Run | Yrd Mat Min Used RIF Installer . | . . . Robots Hacked . | . . . Non-combat . | . . . Combat . | . . . Robot Hacks Applied . | . . . Relay Couplers Released . | . . . Fabnet Peak Effective % . | . . . Robots Rewired . | . . . Allies Hacked . | . . . Hacks Repelled . | . . . Allies | -11 -10 -10 -------- Run | Yrd Mat Min Total Allies 2 | . . 2 Largest Group 2 | . . 2 Highest-Rated Group 47 | . . 47 Highest-Rated Ally 31 | . . 31 Total Orders . | . . . Ally Attacks 6 | . . 6 Total Damage 84 | . . 84 Kills 1 | . . 1 Allies Corrupted . | . . . Allies Melted . | . . . Intel | -11 -10 -10 ------- Run | Yrd Mat Min Robot Analysis Total . | . . . Derelict Logs Recovered 1 | . . 1 Drone Launches . | . . . Drone Recoveries . | . . . Exploration | -11 -10 -10 ------------- Run | Yrd Mat Min Turns Passed 1775 | 67 561 1147 Spaces Moved 702 | 36 223 443 Core 6 | 6 . . Treads 686 | 25 223 438 Legs 5 | 5 . . Wheels . | . . . Hover . | . . . Flight 5 | . . 5 Fastest Speed 50 | 50 160 240 Average Speed 230 | 136 218 244 Slowest Speed 595 | 160 240 595 Overloaded Moves . | . . . Propulsion Burnouts . | . . . Robots Hopped . | . . . Cave-ins Triggered . | . . . Exploration Rate (%) 38 | 5 40 71 Regions Visited 2 Branch Regions 1 Pre-discovered Areas . | . . . Known Exits Taken . | . . . Unknown Exits Taken 2 | 1 1 . Scrap Searched . | . . . Spaces Dug . | . . . Terrain Destroyed . | . . . Melee . | . . . Projectile . | . . . AOE . | . . . Terrain Rammed . | . . . Walls Destroyed . | . . . Machines Disabled . | . . . Actions | -11 -10 -10 --------- Run | Yrd Mat Min Total 809 | 54 264 491 Wait 3 | . . 3 Move 700 | 35 222 443 Hop . | . . . Pick Up 36 | 10 14 12 Fast Attach 1 | 1 . . Attach 13 | 4 6 3 Detach 6 | 1 3 2 Swap 6 | 2 1 3 Drop 12 | 1 1 10 Fire 31 | . 17 14 Melee . | . . . Ram . | . . . Kick . | . . . Crush 1 | . . 1 Escape Stasis . | . . . Rewire . | . . . Trap . | . . . Miscellaneous . | . . . Route ------- -11/Scrapyard -10/Materials -10/Mines (discovered 1 exit: [*Mat]) History --------- Turn | Location | Event 18 | -11/Scrapyard | Discovered new exit (range 16) 68 | -11/Scrapyard | Entered Materials 310 | -10/Materials | Build established: Mutant 554 | -10/Materials | Discovered new exit (range 8) 629 | -10/Materials | Entered Mines 1126 | -10/Mines | Learned 2 Materials zone layouts 1200 | -10/Mines | Met a Derelict shopkeep closing up shop 1536 | -10/Mines | Discovered new exit (range 4) 1698 | -10/Mines | Assembled infested the area 1711 | -10/Mines | A weapon hastily lodged in a ceiling crevice suddenly fell to the ground 1743 | -10/Mines | Core integrity fell below 50% 1770 | -10/Mines | Core integrity fell below 20% 1775 | -10/Mines | Lost 5 parts (1p2n1u1w) 1776 | -10/Mines | Destroyed by as-25013 with Assembled Maul Last Messages --------------- 01733_ as-69574 destroyed. 01734_ The unstable cave ceiling collapses. 01735_ Propulsion Shielding destroyed. 01738_ The unstable cave ceiling collapses. 01738_ as-39944 destroyed. 01738_ as-52435 destroyed. 01738_ Shock Rifle destroyed. 01738_ as-07785 destroyed. 01738_ as-91564 destroyed. 01739_ The unstable cave ceiling collapses. 01740_ Ion Engine destroyed. 01740_ Lgt. Treads destroyed. 01742_ The unstable cave ceiling collapses. 01744_ Lgt. Treads destroyed. 01744_ D-53 Grenadier destroyed. 01746_ The unstable cave ceiling collapses. 01746_ D-53 Grenadier destroyed. 01747_ The unstable cave ceiling collapses. 01772_ Knocked back. 01775_ The unstable cave ceiling collapses. Map ----- +----------------------------------------------------+ | ??# #????# = #?????????????????? | | ??## #????# ##????????????????? | | ???## < #???## ##???????????????? | | ????# ##??## #???????????????? | | ????# ###### #???????????????? | | ????# ##??????????????? | | ????# #??????????????? | | ????## ####### #?????????????? | | ?????# ####### #?????????????# | | ????## # ##?????????????# | | ???## ## ##??????????????# | | ???# ####### ### #??????????????## | | ??# #?????# #?## ##??####???????# | | ??# #????## #?## #### ##??????# | | ??# ##???## ### ## ##?????# | | ??## ##???## ##???## | | ???#####??### #??## | | ?????????## #?## | | ?????##### ##### ##?# | | ????## ###??## ##??# | | ????# #### ##### ##?## | | ????# ##### """ ### | | ????## ###?# """ | | ?????####??### % ### """ | | ???????????# # * ## # | | ???????????# # @ ########## #### | | ????????????# a #??????# #####??? | | ????????????# # ##?????# ##??????? | | ???????????### ## ##????# ###???????? | | ??????????## ##a #????# #?????????? | | ??????????# # #????# #?????????? | | ?????????## #????# #?????????? | | ????????# ###????# #?????????? | | ????????# # # #????# #?????????? | | ????????# ## # #????# #?????????? | | ????????#??## # # ##????# #?????????? | | ????????????#### ##?????# #?????????? | | ??????????????? % ?????? ??????????? | | ???????????????# ## # ?????###??????????? | | ???????????????# # # ??????????????????? | | ???????????????##?####? ?????????????????? | | ???????????????????????%?????????????????? | | ????????????????????????#????????????????? | | ?????????????????????????????????????????? | | ?????????????????????????????????????????? | | ?????????????????????????????????????????? | | ?????????????????????????????????????????? | | ?????????????????????????????????????????? | | ?????????????????????????????????????????? | | ?????????????????????????????????????????? | +----------------------------------------------------+ Best States ------------- Heat Dissipation 25 Energy Generation 10 Energy Capacity 250 Matter Stores 300 Matter Capacity 300 Sight Range 16 Terrain Scan Density 10 Propulsion Shielding 33 Evasion (%) 55 Recoil Reduction 2 Item Schematics ----------------- None Robot Schematics ------------------ None Fabricated ------------ Nothing Alien Tech Used ----------------- None Achievements -------------- None Challenges ------------ None Game ------ Seed RagnarokPowerCycler Manual? 0 Play Time 00:26:02 Cumulative 10.0 hours Start 2024.04.27 @ 22:23:22 End 2024.04.27 @ 22:55:14 Sessions 1 Manual Loads 0 Difficulty Rogue Special Mode None Game No. 15 Rogue 15 Adventurer 0 Explorer 0 Win Type - Total 0 Types 0/0/0/0/0/0/0/0/0 Lore% 12 Gallery% 12 Achievement% 11 Wizard Run 0 Options --------- Layout 1 ASCII 0 Keyboard 0 Movement Mouse Keybinds 0 Fullscreen 1 Font 24/Smallcaps Map View 50x35 Zoom Use 10% Tactical HUD 1 Map Filters NONE Filters NONE Steam 1 RUN: 776fd798-0ded-4f35-9b7d-2b70c8ad6218